bitfinex/quotes_BTCUSD_20250814
["timestamp","ask_amount","ask_price","bid_price","bid_amount"]
[1755198784039,0.38378526,118160.0,118150.0,0.00198]
[1755198784255,0.16927634,118150.0,118140.0,4.914e-05]
[1755198784446,0.25351959,118150.0,118140.0,0.00202914]
[1755198784657,0.26934057,118150.0,118140.0,0.00202914]
[1755198785494,0.25351959,118150.0,118140.0,0.00202914]
[1755198785693,0.25199959,118150.0,118140.0,0.17131981]
[1755198785900,0.25199959,118150.0,118140.0,0.57302638]
[1755198786112,0.08272325,118150.0,118140.0,0.57302638]
[1755198786908,0.25199959,118150.0,118140.0,0.57302638]
[1755198788969,0.16926201,118160.0,118150.0,0.16927634]
[1755198789268,0.38338526,118160.0,118150.0,0.17457634]
[1755198789415,0.4225327,118160.0,118150.0,0.17457634]
[1755198789625,0.38338526,118160.0,118150.0,0.17457634]
[1755198791048,0.38338526,118160.0,118150.0,0.00214]
[1755198791256,0.38553526,118160.0,118150.0,0.00214]
[1755198791457,0.16927634,118150.0,118140.0,0.17249981]
[1755198791656,0.17142634,118150.0,118140.0,0.17147981]
[1755198791858,0.19654001,118150.0,118140.0,0.17147981]
[1755198792070,0.17142634,118150.0,118140.0,0.17147981]
[1755198792273,0.16927634,118150.0,118140.0,0.17147981]
[1755198792472,0.16927634,118150.0,118140.0,0.17463981]
[1755198792652,0.38647526,118160.0,118140.0,0.17463981]
[1755198792851,0.38647526,118160.0,118150.0,0.16927634]
[1755198793052,0.38862526,118160.0,118150.0,0.00214]
[1755198793260,0.38862526,118160.0,118150.0,0.17141634]
[1755198793918,0.38553526,118160.0,118150.0,0.17141634]
[1755198794658,0.38338526,118160.0,118150.0,0.17141634]
[1755198795424,0.38438526,118160.0,118150.0,0.17141634]
[1755198795811,0.38438526,118160.0,118150.0,0.17457634]
[1755198796432,0.38438526,118160.0,118150.0,0.17141634]
[1755198796710,0.38653526,118160.0,118150.0,0.17141634]
[1755198796917,0.38653526,118160.0,118150.0,0.00214]
[1755198797070,0.38653526,118160.0,118150.0,0.17141634]
[1755198799251,0.38653526,118160.0,118150.0,0.00214]
[1755198799831,0.38962526,118160.0,118150.0,0.00214]
[1755198800970,0.38962526,118160.0,118150.0,0.17141634]
[1755198802191,0.38962526,118160.0,118150.0,0.00214]
[1755198802417,0.38962526,118160.0,118150.0,0.17141634]
[1755198803149,0.38438526,118160.0,118150.0,0.0053]
[1755198803383,0.38438526,118160.0,118150.0,0.17457634]
[1755198803608,0.4351227,118160.0,118150.0,0.17141634]
[1755198804029,0.38653526,118160.0,118150.0,0.17141634]
[1755198804250,0.25298526,118160.0,118150.0,0.57204291]
[1755198804530,0.13264,118160.0,118150.0,0.57204291]
[1755198805974,0.30190201,118160.0,118150.0,0.57204291]
[1755198806417,0.30190201,118160.0,118150.0,0.56888291]
[1755198806650,0.34181136,118160.0,118150.0,0.00214]
[1755198806883,0.34490136,118160.0,118140.0,0.59537338]
[1755198807307,0.34490136,118160.0,118150.0,0.16927634]
[1755198807715,0.34490136,118160.0,118150.0,0.17141634]
[1755198807918,0.34390136,118160.0,118150.0,0.17141634]
[1755198808349,0.30614201,118160.0,118150.0,0.17141634]
[1755198808769,0.13379,118160.0,118150.0,0.17141634]
[1755198808979,0.13264,118160.0,118150.0,0.17141634]
[1755198809189,0.30190201,118160.0,118150.0,0.17141634]
[1755198809396,0.30714201,118160.0,118150.0,0.16927634]
[1755198809598,0.35562746,118160.0,118150.0,0.16927634]
[1755198811152,0.35562746,118160.0,118150.0,0.17141634]
[1755198811767,0.30405201,118160.0,118150.0,0.17141634]
[1755198812152,0.13264,118160.0,118150.0,0.17457634]
[1755198812511,0.30190201,118160.0,118150.0,0.17457634]
[1755198812915,0.30190201,118160.0,118150.0,0.17141634]
[1755198813353,0.30405201,118160.0,118150.0,0.17141634]
[1755198813577,0.16927634,118150.0,118140.0,0.19474681]
[1755198813796,0.17451634,118150.0,118140.0,0.19474681]
[1755198814424,0.17451634,118150.0,118140.0,0.16933981]
[1755198815673,0.17451634,118150.0,118140.0,0.17033981]
[1755198816533,0.30595634,118150.0,118140.0,0.17033981]
[1755198817121,0.30595634,118150.0,118140.0,0.00104914]
[1755198817270,0.30595634,118150.0,118140.0,0.17033981]
[1755198817484,0.30595634,118150.0,118140.0,0.56780638]
[1755198817677,0.30595634,118150.0,118140.0,0.39851571]
[1755198818620,0.30071634,118150.0,118140.0,0.56982638]
[1755198818847,0.30071634,118150.0,118140.0,0.57279638]
[1755198819807,0.30071634,118150.0,118140.0,0.56982638]
[1755198821588,0.30585634,118150.0,118140.0,0.40053571]
[1755198821800,0.31558877,118150.0,118140.0,0.00306914]
[1755198822038,0.31558877,118150.0,118140.0,0.40053571]
[1755198822252,0.31558877,118150.0,118140.0,0.56982638]
[1755198822452,0.31558877,118150.0,118140.0,0.17235981]
[1755198822700,0.31558877,118150.0,118140.0,0.17033981]
[1755198822908,0.39831202,118150.0,118140.0,0.00104914]
[1755198823119,0.81322761,118150.0,118140.0,0.00104914]
[1755198824603,0.41576104,118150.0,118140.0,0.00104914]
[1755198827497,0.81322761,118150.0,118140.0,0.00104914]
[1755198831672,1.01630761,118150.0,118140.0,0.00104914]
[1755198832790,0.61884104,118150.0,118140.0,0.00104914]
[1755198835930,0.60910861,118150.0,118140.0,0.00104914]
[1755198840354,1.00657518,118150.0,118140.0,0.00104914]
[1755198844728,0.60910861,118150.0,118140.0,0.00104914]
[1755198844882,1.00657518,118150.0,118140.0,0.00104914]
[1755198846592,1.0224058,118150.0,118140.0,0.00104914]
[1755198846794,1.49566023,118150.0,118140.0,1e-08]
[1755198846996,1.52834684,118150.0,118140.0,1e-08]
[1755198847194,1.55376584,118150.0,118140.0,1e-08]
[1755198847537,0.16933367,118110.0,118100.0,1.00305]
[1755198847747,0.38297692,118110.0,118100.0,1.00567197]
[1755198849297,0.38297692,118110.0,118100.0,1.01413858]
[1755198849432,0.25205692,118110.0,118100.0,1.17501998]
[1755198849640,0.30025367,118110.0,118100.0,1.57248655]
[1755198850250,0.30025367,118110.0,118100.0,1.17501998]
[1755198850649,0.30025367,118110.0,118100.0,1.57248655]
[1755198852572,0.30025367,118110.0,118100.0,1.58080924]
[1755198854039,0.30025367,118110.0,118100.0,1.17501998]
[1755198854273,0.30025367,118110.0,118100.0,1.58073913]
[1755198856218,0.30025367,118110.0,118100.0,1.18327256]
[1755198856413,0.30025367,118110.0,118100.0,1.58073913]
[1755198858940,0.1693322,118120.0,118100.0,1.58073913]
[1755198859085,0.25204258,118120.0,118110.0,0.56680024]
[1755198859284,0.38272258,118120.0,118110.0,0.57198024]
[1755198860123,0.38280258,118120.0,118110.0,0.57198024]
[1755198860305,0.38380258,118120.0,118110.0,0.57198024]
[1755198860506,0.38380258,118120.0,118110.0,0.17451367]
[1755198860710,0.38380258,118120.0,118110.0,0.57198024]
[1755198860916,0.38295588,118120.0,118110.0,0.57198024]
[1755198861112,0.21363655,118120.0,118110.0,0.57198024]
[1755198862434,0.21463655,118120.0,118110.0,0.57198024]
[1755198863549,0.13268,118120.0,118110.0,0.65446467]
[1755198863783,0.13268,118120.0,118110.0,0.67987767]
[1755198863951,0.13268,118120.0,118110.0,0.59739324]
[1755198866573,0.002,118120.0,118110.0,0.59739324]
[1755198866777,0.13252,118120.0,118110.0,0.99485981]
[1755198867330,0.002,118120.0,118110.0,0.99485981]
[1755198867542,0.13252,118120.0,118110.0,1.07758306]
[1755198867756,0.13152,118120.0,118110.0,0.76260092]
[1755198867955,0.13152,118120.0,118110.0,0.68011649]
[1755198868192,0.13152,118120.0,118110.0,0.68211649]
[1755198868757,0.13052,118120.0,118110.0,0.68211649]
[1755198869005,0.13052,118120.0,118110.0,0.68511649]
[1755198869406,0.13052,118120.0,118110.0,0.76760092]
[1755198870225,0.13052,118120.0,118110.0,0.68511649]
[1755198873086,0.13052,118120.0,118110.0,1.08258306]
[1755198873321,0.13052,118120.0,118110.0,0.68511649]
[1755198873942,0.13052,118120.0,118110.0,0.59934324]
[1755198874145,0.13252,118120.0,118110.0,0.20187667]
[1755198874481,0.13252,118120.0,118110.0,0.59934324]
[1755198874791,0.13052,118120.0,118110.0,0.60239324]
[1755198875775,0.13052,118120.0,118110.0,0.59934324]
[1755198875980,0.13252,118120.0,118110.0,0.59934324]
[1755198878147,0.13052,118120.0,118110.0,0.59934324]
[1755198880861,0.13052,118120.0,118110.0,0.59935324]
[1755198883745,0.11152,118120.0,118110.0,0.68183767]
[1755198884385,0.11152,118120.0,118110.0,0.67969767]
[1755198884997,0.11152,118120.0,118110.0,0.59721324]
[1755198896508,0.37235696,118150.0,118130.0,0.169305]
[1755198896681,0.38241392,118140.0,118130.0,0.56677157]
[1755198897312,0.38241392,118140.0,118130.0,0.59218257]
[1755198897629,0.21312325,118140.0,118130.0,0.59218257]
[1755198899874,0.38241392,118140.0,118130.0,0.59218257]
[1755198900321,0.21312325,118140.0,118130.0,0.59218257]
[1755198901529,0.08272325,118140.0,118130.0,0.59218257]
[1755198901731,0.38083191,118170.0,118150.0,0.16926253]
[1755198901931,0.21308325,118160.0,118150.0,0.16926253]
[1755198902138,0.13036,118160.0,118150.0,0.5667291]
[1755198902696,0.29962201,118160.0,118150.0,0.5667291]
[1755198903143,0.29962201,118160.0,118150.0,0.59218525]
[1755198903614,0.30162201,118160.0,118150.0,0.59218525]
[1755198903945,0.13436,118160.0,118150.0,0.59218525]
[1755198905867,0.30362201,118160.0,118150.0,0.59218525]
[1755198906221,0.13436,118160.0,118150.0,0.59218525]
[1755198907915,0.30362201,118160.0,118150.0,0.59218525]
[1755198908371,0.13436,118160.0,118150.0,0.59218525]
[1755198910029,0.30362201,118160.0,118150.0,0.60065755]
[1755198910483,0.13436,118160.0,118150.0,0.60065755]
[1755198910816,0.13436,118160.0,118150.0,0.61830357]
[1755198911197,0.30362201,118160.0,118150.0,0.60065755]
[1755198911421,0.30362201,118160.0,118150.0,0.59218525]
[1755198911851,0.30362201,118160.0,118150.0,0.60057908]
[1755198912110,0.30362201,118160.0,118150.0,0.59218525]
[1755198912632,0.30362201,118160.0,118150.0,0.60080534]
[1755198914264,0.30362201,118160.0,118150.0,0.59218525]
[1755198914466,0.30362201,118160.0,118150.0,0.42292272]
[1755198914681,0.30362201,118160.0,118150.0,0.59219906]
[1755198917881,0.30362201,118160.0,118150.0,0.19473249]
[1755198923322,0.30362201,118160.0,118150.0,0.59219906]
[1755198924794,0.30362201,118160.0,118150.0,0.64206603]
[1755198925911,0.38634526,118160.0,118150.0,0.02545615]
[1755198926115,0.46882969,118160.0,118150.0,0.47278969]
[1755198926319,0.46882969,118160.0,118150.0,0.02545615]
[1755198926530,0.38634526,118160.0,118150.0,0.47278969]
[1755198926758,0.38634526,118160.0,118150.0,0.02545615]
[1755198926759,0.8336788,118160.0,118150.0,0.02545615]
[1755198926970,0.8336788,118160.0,118150.0,4.915e-05]
[1755198927180,0.91616323,118160.0,118150.0,4.915e-05]
[1755198927796,0.46882969,118160.0,118150.0,4.915e-05]
[1755198930722,1.22346599,118160.0,118150.0,4.915e-05]
[1755198931189,1.26202908,118160.0,118150.0,4.915e-05]
[1755198933365,1.24617599,118160.0,118150.0,4.915e-05]
[1755198933576,1.22346599,118160.0,118150.0,4.915e-05]
[1755198935210,1.65972889,118160.0,118150.0,4.915e-05]
[1755198935428,1.85972889,118160.0,118150.0,4.915e-05]
[1755198936278,1.06430327,118160.0,118150.0,4.915e-05]
[1755198936423,1.85972889,118160.0,118150.0,4.915e-05]
[1755198936587,1.88514489,118160.0,118150.0,4.915e-05]
[1755198936807,1.48743208,118160.0,118150.0,4.915e-05]
[1755198937018,1.52544938,118160.0,118150.0,4.915e-05]
[1755198937239,1.52544313,118160.0,118150.0,4.915e-05]
[1755198937966,1.52544024,118160.0,118150.0,4.915e-05]
[1755198938616,1.92315305,118160.0,118150.0,4.915e-05]
[1755198942455,2.17392305,118160.0,118150.0,4.915e-05]
[1755198944388,2.17897305,118160.0,118150.0,4.915e-05]
[1755198945702,2.62007305,118160.0,118150.0,4.915e-05]
[1755198946633,2.58205575,118160.0,118150.0,4.915e-05]
[1755198947629,2.58005575,118160.0,118150.0,4.915e-05]
[1755198948462,2.58205575,118160.0,118150.0,4.915e-05]
[1755198949542,1.78663013,118160.0,118150.0,4.915e-05]
[1755198949731,2.58205575,118160.0,118150.0,4.915e-05]
[1755198952219,2.58205575,118160.0,118150.0,1e-08]
[1755198953196,2.60705575,118160.0,118150.0,1e-08]
[1755198955449,2.61496762,118160.0,118150.0,1e-08]
[1755198956262,2.70399762,118160.0,118150.0,1e-08]
[1755198957335,2.20480284,118160.0,118150.0,1e-08]
[1755198957829,2.29383284,118160.0,118150.0,1e-08]
[1755198958804,2.26883284,118160.0,118150.0,1e-08]
[1755198959185,2.29383284,118160.0,118150.0,1e-08]
[1755198960222,2.26883284,118160.0,118150.0,1e-08]
[1755198960429,2.29383284,118160.0,118150.0,1e-08]
[1755198961719,2.27112284,118160.0,118150.0,1e-08]
[1755198962810,2.24612284,118160.0,118150.0,1e-08]
[1755198963019,2.27112284,118160.0,118150.0,1e-08]
[1755198965251,2.24612284,118160.0,118150.0,1e-08]
[1755198965459,2.27112284,118160.0,118150.0,1e-08]
[1755198966022,2.26519395,118160.0,118150.0,1e-08]
[1755198966241,2.2711326,118160.0,118150.0,1e-08]
[1755198966453,1.47570698,118160.0,118150.0,1e-08]
[1755198966667,2.2711326,118160.0,118150.0,1e-08]
[1755198968742,2.2461326,118160.0,118150.0,1e-08]
[1755198968965,2.2711326,118160.0,118150.0,1e-08]
[1755198971024,2.1821026,118160.0,118150.0,1e-08]
[1755198971234,2.1571026,118160.0,118150.0,1e-08]
[1755198971442,2.1821026,118160.0,118150.0,1e-08]
[1755198971937,2.16824575,118160.0,118150.0,1e-08]
[1755198972170,2.15710432,118160.0,118150.0,1e-08]
[1755198972423,2.18210432,118160.0,118150.0,1e-08]
[1755198972844,1.82726985,118160.0,118150.0,1e-08]
[1755198973055,1.47905704,118160.0,118150.0,0.00516001]
[1755198973702,1.74644985,118160.0,118150.0,0.00516001]
[1755198973919,1.47905704,118160.0,118150.0,0.00516001]
[1755198974124,1.87676985,118160.0,118150.0,0.00516001]
[1755198974337,1.47905704,118160.0,118150.0,0.00516001]
[1755198974994,1.08135752,118160.0,118150.0,0.00516001]
[1755198975205,1.3965859,118160.0,118150.0,0.00516001]
[1755198976341,1.39659097,118160.0,118150.0,0.00516001]
[1755198976580,1.79430378,118160.0,118150.0,0.00516001]
[1755198978042,1.79430825,118160.0,118150.0,0.00516001]
[1755198979120,1.79968825,118160.0,118150.0,1e-08]
[1755198979347,1.88217268,118160.0,118150.0,1e-08]
[1755198980034,1.90717268,118160.0,118150.0,1e-08]
[1755198980689,1.90517268,118160.0,118150.0,1e-08]
[1755198980914,2.1589869,118160.0,118150.0,1e-08]
[1755198981126,2.1609869,118160.0,118150.0,1e-08]
[1755198981815,2.1589869,118160.0,118150.0,1e-08]
[1755198982240,2.1609869,118160.0,118150.0,1e-08]
[1755198982798,2.13217268,118160.0,118150.0,1e-08]
[1755198983370,2.10717268,118160.0,118150.0,1e-08]
[1755198983574,2.13217268,118160.0,118150.0,1e-08]
[1755198984000,2.10717268,118160.0,118150.0,1e-08]
[1755198984208,2.13217268,118160.0,118150.0,1e-08]
[1755198984414,2.10717268,118160.0,118150.0,1e-08]
[1755198984624,2.13217268,118160.0,118150.0,1e-08]
[1755198984838,2.10717268,118160.0,118150.0,1e-08]
[1755198985046,2.13217268,118160.0,118150.0,1e-08]
[1755198986638,2.13218262,118160.0,118150.0,1e-08]
[1755198987981,2.18300262,118160.0,118150.0,1e-08]
[1755198989496,2.18300289,118160.0,118150.0,1e-08]
[1755198990331,2.15800289,118160.0,118150.0,1e-08]
[1755198990488,2.18300289,118160.0,118150.0,1e-08]
[1755198991284,2.24944283,118160.0,118150.0,1e-08]
[1755198991725,2.26771096,118160.0,118150.0,1e-08]
[1755198992569,2.26371096,118160.0,118150.0,1e-08]
[1755198992800,2.21662861,118160.0,118150.0,1e-08]
[1755198992984,2.22362861,118160.0,118150.0,1e-08]
[1755198995420,2.24189298,118160.0,118150.0,1e-08]
[1755198995961,2.24189298,118160.0,118120.0,0.00314]
[1755198995962,0.18678269,118110.0,118100.0,1.0]
[1755198996153,1.05337702,118110.0,118100.0,1.00251197]
[1755198996595,1.05337702,118110.0,118100.0,1.00576197]
[1755198997191,1.00898167,118110.0,118100.0,1.00576197]
[1755198997884,1.05980167,118110.0,118100.0,1.00776197]
[1755198998087,1.00898167,118110.0,118100.0,1.00776197]
[1755198998298,0.61126886,118110.0,118100.0,1.00776197]
[1755198998454,1.00898167,118110.0,118100.0,1.00776197]
[1755198998671,1.00898167,118110.0,118100.0,1.01076197]
[1755199001228,1.04745625,118110.0,118100.0,1.01076197]
[1755199002822,1.12994068,118110.0,118100.0,1.01076197]
[1755199004058,0.64974344,118110.0,118100.0,1.01076197]
[1755199004288,1.04745625,118110.0,118100.0,1.01076197]
[1755199005887,1.38745625,118110.0,118100.0,1.01076197]
[1755199006099,1.59256625,118110.0,118100.0,1.00549197]
[1755199006938,1.59256625,118110.0,118100.0,1.00049197]
[1755199007141,1.67505068,118110.0,118100.0,1.00251197]
[1755199007320,1.67605068,118110.0,118100.0,1.00251197]
[1755199007897,1.72374068,118110.0,118100.0,1.00251197]
[1755199008446,1.72687068,118110.0,118100.0,1.00251197]
[1755199009654,1.72687068,118110.0,118100.0,1.00049197]
[1755199010026,1.72687068,118110.0,118080.0,0.0104]
[1755199010027,0.95181137,118090.0,118080.0,0.0104]
[1755199010227,0.95181137,118090.0,118070.0,0.0004]
[1755199010228,1.39807133,118080.0,118070.0,0.0004]
[1755199010428,1.63207947,118080.0,118070.0,0.0004]
[1755199010644,0.83538721,118060.0,118050.0,0.00365]
[1755199010855,0.65071765,118060.0,118050.0,0.00567]
[1755199011479,0.67111765,118060.0,118050.0,0.00567]
[1755199011641,1.13091489,118060.0,118050.0,0.00567]
[1755199012094,1.13140655,118060.0,118050.0,0.00567]
[1755199012857,1.08058655,118060.0,118050.0,0.00567]
[1755199013349,1.11832023,118060.0,118050.0,0.00567]
[1755199013802,1.12343023,118060.0,118050.0,0.0004]
[1755199014000,1.11832023,118060.0,118050.0,0.00242]
[1755199014346,1.11832023,118060.0,118050.0,0.00567]
[1755199014960,0.39028742,118060.0,118050.0,0.00567]
[1755199015112,0.29035397,118060.0,118050.0,0.00567]
[1755199015318,0.42071397,118060.0,118050.0,0.02844]
[1755199015542,0.76071397,118060.0,118050.0,0.02844]
[1755199016378,0.72298029,118060.0,118050.0,0.02844]
[1755199018128,0.76047046,118060.0,118050.0,0.02844]
[1755199018331,0.77149752,118060.0,118050.0,0.02844]
[1755199019161,1.18665935,118060.0,118050.0,0.00567]
[1755199019595,1.18863935,118060.0,118050.0,0.00242]
[1755199019806,1.19176935,118060.0,118050.0,0.0004]
[1755199020717,1.39176935,118060.0,118050.0,0.0004]
[1755199021364,1.4075877,118060.0,118050.0,0.0004]
[1755199021579,1.42142874,118060.0,118050.0,0.0004]
[1755199022241,1.02371593,118060.0,118050.0,0.0004]
[1755199022450,1.42142874,118060.0,118050.0,0.0004]
[1755199023350,1.42142874,118060.0,118050.0,1e-08]
[1755199023351,1.49724874,118060.0,118050.0,1e-08]
[1755199024655,1.47224874,118060.0,118050.0,1e-08]
[1755199025722,1.23180168,118060.0,118050.0,1e-08]
[1755199026351,1.23380168,118060.0,118050.0,1e-08]
[1755199028733,1.23380168,118060.0,118040.0,0.01023481]
[1755199028734,0.90713254,118050.0,118040.0,0.01023481]
[1755199028956,1.35607518,118050.0,118040.0,0.01233481]
[1755199029182,1.43855961,118050.0,118040.0,0.01233481]
[1755199029419,0.95836237,118050.0,118040.0,0.01233481]
[1755199030522,0.61836237,118050.0,118040.0,0.01233481]
[1755199031135,1.01607518,118050.0,118040.0,0.01233481]
[1755199031790,0.61836237,118050.0,118040.0,0.01233481]
[1755199032433,0.61833161,118050.0,118040.0,0.01233481]
[1755199032640,0.61830867,118050.0,118040.0,0.01233481]
[1755199032847,0.67164013,118050.0,118040.0,0.01233481]
[1755199034426,0.61830867,118050.0,118040.0,0.01233481]
[1755199034634,0.62129867,118050.0,118040.0,0.01233481]
[1755199036268,0.48502867,118050.0,118040.0,0.01527481]
[1755199036491,0.48502867,118050.0,118040.0,0.58242171]
[1755199036700,0.44685442,118050.0,118040.0,0.60694171]
[1755199036911,0.61627415,118050.0,118040.0,0.60694171]
[1755199037560,0.44685442,118050.0,118040.0,0.60694171]
[1755199037771,0.44094001,118050.0,118040.0,0.60694171]
[1755199037974,0.44106001,118050.0,118040.0,0.60694171]
[1755199038424,0.44107292,118050.0,118040.0,0.60694171]
[1755199039267,0.44699428,118050.0,118040.0,0.60694171]
[1755199039446,0.44107292,118050.0,118040.0,0.60694171]
[1755199040294,0.61049265,118050.0,118040.0,0.60694171]
[1755199040515,0.61049265,118050.0,118040.0,0.43750762]
[1755199041064,0.61049265,118050.0,118040.0,0.03979481]
[1755199041276,0.61049265,118050.0,118040.0,0.60905963]
[1755199041277,0.44107292,118050.0,118040.0,0.60905963]
[1755199041494,0.61047013,118050.0,118040.0,0.60694171]
[1755199042131,0.4410504,118050.0,118040.0,0.60694171]
[1755199042344,0.61047013,118050.0,118040.0,0.60694171]
[1755199042547,0.59047013,118050.0,118040.0,0.2092289]
[1755199042979,0.59047013,118050.0,118040.0,0.60694171]
[1755199043587,0.59047013,118050.0,118040.0,0.2092289]
[1755199043715,0.59047013,118050.0,118040.0,0.60694171]
[1755199043924,0.59047013,118050.0,118040.0,0.43750762]
[1755199044124,0.59047013,118050.0,118040.0,0.60694171]
[1755199044317,0.59047881,118050.0,118040.0,0.60694171]
[1755199044823,0.59047881,118050.0,118040.0,0.43750762]
[1755199045018,0.59047881,118050.0,118040.0,0.41298762]
[1755199045809,0.59047881,118050.0,118040.0,0.01527481]
[1755199046032,0.59047881,118050.0,118040.0,0.41298762]
[1755199047269,0.59049387,118050.0,118040.0,0.41298762]
[1755199047490,0.59049387,118050.0,118040.0,0.58242171]
[1755199050123,0.59051787,118050.0,118040.0,0.1847089]
[1755199050323,0.59051787,118050.0,118040.0,0.58242171]
[1755199053033,0.42109814,118050.0,118040.0,0.58242171]
[1755199053239,0.28973814,118050.0,118040.0,0.58242171]
[1755199053486,0.42093814,118050.0,118040.0,0.98013452]
[1755199053712,0.41302651,118050.0,118040.0,0.58242171]
[1755199054748,0.41302651,118050.0,118040.0,0.1847089]
[1755199054964,0.41302651,118050.0,118040.0,0.58242171]
[1755199055173,0.41302651,118050.0,118040.0,0.58442171]
[1755199055674,0.41302651,118050.0,118040.0,0.58642171]
[1755199055873,0.41302923,118050.0,118040.0,0.58642171]
[1755199056110,0.41302923,118050.0,118040.0,0.98413452]
[1755199059054,0.41303141,118050.0,118040.0,0.98413452]
[1755199060627,0.41303141,118050.0,118040.0,0.58642171]
[1755199062085,0.39720325,118050.0,118040.0,0.58642171]
[1755199063170,0.39720325,118050.0,118040.0,0.98413452]
[1755199064857,0.3344,118050.0,118040.0,0.98413452]
[1755199065271,0.13112,118050.0,118040.0,0.98413452]
[1755199067647,0.00049166,118060.0,118050.0,0.16941973]
[1755199067847,0.13153166,118060.0,118050.0,0.56908254]
[1755199068046,0.13153166,118060.0,118050.0,0.57209254]
[1755199068846,0.13153166,118060.0,118050.0,0.57509254]
[1755199069457,0.13153166,118060.0,118050.0,0.57709254]
[1755199070187,0.13153166,118060.0,118050.0,0.17937973]
[1755199070364,0.13153166,118060.0,118050.0,0.57709254]
[1755199072424,0.13153166,118060.0,118050.0,0.58544927]
[1755199073775,0.13153166,118060.0,118050.0,0.61087627]
[1755199075725,0.13363166,118060.0,118050.0,0.21015346]
[1755199075933,0.13660166,118060.0,118050.0,0.58243927]
[1755199076796,0.13363166,118060.0,118050.0,0.58243927]
[1755199078956,0.13660166,118060.0,118050.0,0.58243927]
[1755199080343,0.13363166,118060.0,118050.0,0.58243927]
[1755199080571,0.13660166,118060.0,118050.0,0.58243927]
[1755199080812,0.30600704,118060.0,118050.0,0.58243927]
[1755199081055,0.30600704,118060.0,118050.0,0.58048927]
[1755199081507,0.41809012,118060.0,118050.0,0.005]
[1755199082126,0.38873029,118060.0,118050.0,0.40271281]
[1755199082475,0.38873029,118060.0,118050.0,0.57213254]
[1755199082685,0.21932491,118060.0,118050.0,0.56713254]
[1755199082891,0.21635491,118060.0,118050.0,0.57108254]
[1755199083516,0.21425491,118060.0,118050.0,0.57108254]
[1755199083714,0.21425491,118060.0,118050.0,0.57409254]
[1755199084359,0.13153166,118060.0,118050.0,0.57409254]
[1755199084706,0.00049166,118060.0,118050.0,0.58255242]
[1755199084906,0.00049166,118060.0,118050.0,0.92255242]
[1755199085166,0.13145166,118060.0,118050.0,0.92255242]
[1755199085397,0.00049166,118060.0,118050.0,1.02949567]
[1755199085599,0.00049166,118060.0,118050.0,1.1119801]
[1755199085932,0.00049166,118060.0,118050.0,1.50969291]
[1755199086130,0.06766186,118090.0,118050.0,1.50969291]
[1755199086131,0.131,118070.0,118050.0,1.50969291]
[1755199086332,0.06766186,118090.0,118080.0,0.16937669]
[1755199086559,0.19870186,118090.0,118080.0,0.96993231]
[1755199086755,0.19870186,118090.0,118080.0,0.98757833]
[1755199087168,0.19870186,118090.0,118080.0,1.01299733]
[1755199088244,0.19870186,118090.0,118080.0,1.01499733]
[1755199088884,0.19870186,118090.0,118080.0,1.01599733]
[1755199089782,0.19870186,118090.0,118080.0,0.99835131]
[1755199090775,0.19370186,118090.0,118080.0,0.99835131]
[1755199090984,0.19567186,118090.0,118080.0,0.99517131]
[1755199091329,0.19871186,118090.0,118080.0,0.99517131]
[1755199092092,0.19567186,118090.0,118080.0,0.99517131]
[1755199092332,0.19370186,118090.0,118080.0,1.07765574]
[1755199093611,0.19370186,118090.0,118080.0,0.28223012]
[1755199093811,0.19567186,118090.0,118080.0,0.99517131]
[1755199095793,0.19370186,118090.0,118080.0,0.99517131]
[1755199096007,0.19370186,118090.0,118080.0,0.99835131]
[1755199096547,0.13104,118090.0,118080.0,1.33835131]
[1755199108889,0.13104,118090.0,118080.0,0.54292569]
[1755199109123,0.13104,118090.0,118080.0,1.33835131]
[1755199109320,0.13605,118090.0,118080.0,1.33517131]
[1755199109561,0.13605,118090.0,118080.0,1.33322131]
[1755199111203,0.13605,118090.0,118080.0,1.41570574]
[1755199113520,0.13605,118090.0,118080.0,1.33535131]
[1755199114158,0.13301,118090.0,118080.0,1.33535131]
[1755199115223,0.00197,118090.0,118080.0,1.33535131]
[1755199117606,0.13396,118100.0,118090.0,0.16936235]
[1755199117817,0.13595,118100.0,118090.0,0.56707516]
[1755199118820,0.13595,118100.0,118090.0,0.56712431]
[1755199119438,0.13595,118100.0,118090.0,0.59254331]
[1755199120059,0.13695,118100.0,118090.0,0.59254331]
[1755199121926,0.13695,118100.0,118090.0,0.67502774]
[1755199122229,0.13695,118100.0,118090.0,0.59254331]
[1755199123386,0.13695,118100.0,118090.0,0.59766331]
[1755199123387,0.001,118100.0,118090.0,0.59766331]
[1755199123705,0.001,118100.0,118090.0,1.46633612]
[1755199124299,0.19862186,118110.0,118100.0,0.16934801]
[1755199124484,0.19862186,118110.0,118100.0,0.96989363]
[1755199124689,0.19862186,118110.0,118100.0,1.05237806]
[1755199125875,0.19862186,118110.0,118100.0,1.05337806]
[1755199126478,0.19862186,118110.0,118100.0,0.65566525]
[1755199126862,0.07062186,118130.0,118120.0,0.16931933]
[1755199127231,0.20357186,118130.0,118120.0,0.96675495]
[1755199127567,0.20357186,118130.0,118120.0,0.96474495]
[1755199128001,0.20357186,118130.0,118120.0,0.16931933]
[1755199128343,0.20557186,118130.0,118120.0,0.56703214]
[1755199128550,0.20557186,118130.0,118120.0,0.56904214]
[1755199128838,0.20657186,118130.0,118120.0,0.96675495]
[1755199129188,0.20657186,118130.0,118120.0,0.97528216]
[1755199130785,0.20657186,118130.0,118120.0,0.97327216]
[1755199133214,0.20657186,118130.0,118120.0,0.57555935]
[1755199135081,0.20657186,118130.0,118120.0,0.97327216]
[1755199136578,0.20657186,118130.0,118120.0,0.57555935]
[1755199137452,0.20657186,118130.0,118120.0,0.97327216]
[1755199137891,0.20657186,118130.0,118120.0,0.97528216]
[1755199139456,0.20657186,118130.0,118120.0,0.57756935]
[1755199140050,0.20657186,118130.0,118120.0,0.97528216]
[1755199142143,0.20657186,118130.0,118120.0,0.99292818]
[1755199142358,0.20361186,118130.0,118120.0,0.99292818]
[1755199142834,0.20657186,118130.0,118120.0,0.97327216]
[1755199143466,0.20657186,118130.0,118120.0,0.97528216]
[1755199143679,0.20361186,118130.0,118120.0,0.97528216]
[1755199145121,0.20162186,118130.0,118120.0,0.97839216]
[1755199146240,0.20361186,118130.0,118120.0,0.97528216]
[1755199146463,0.20657186,118130.0,118120.0,0.97528216]
[1755199147876,0.20361186,118130.0,118120.0,0.97528216]
[1755199148185,0.20162186,118130.0,118120.0,0.97528216]
[1755199148943,0.28952511,118130.0,118120.0,0.17784654]
[1755199149149,0.28952511,118130.0,118120.0,0.57555935]
[1755199149396,0.28952511,118130.0,118120.0,0.40624002]
[1755199149620,0.45883011,118130.0,118120.0,0.40624002]
[1755199150377,0.45883011,118130.0,118120.0,0.57555935]
[1755199152825,0.28952511,118130.0,118120.0,0.57555935]
[1755199156775,0.15543511,118130.0,118120.0,0.97524216]
[1755199156982,0.13352,118130.0,118120.0,0.97846216]
[1755199157204,0.003,118130.0,118120.0,1.40094659]